bitfinex-derivatives/quotes_SOLF0:USTF0_20240820
["timestamp","ask_amount","ask_price","bid_price","bid_amount"]
[1724162351807,40.9267,146.18,146.12,3.4206]
[1724162352009,40.9267,146.18,146.1,39.35]
[1724162352309,0.04620929,146.15,146.13,0.04910999]
[1724162354816,0.04620929,146.15,146.13,3.46960999]
[1724162356509,0.04620929,146.15,146.13,0.04910999]
[1724162357324,39.35,146.14,146.07,30.83579597]
[1724162358212,3.4209,146.12,146.09,3.4215]
[1724162358407,1.4685,146.13,146.07,30.76637931]
[1724162358625,39.35,146.12,146.07,30.76637931]
[1724162358919,40.88280906,146.12,146.09,0.0417917]
[1724162359325,3.4214,146.1,146.09,0.0417917]
[1724162360413,39.35,146.1,146.05,3.4223]
[1724162360919,39.35,146.1,146.04,3.48929885]
[1724162361122,39.35,146.1,146.04,3.4225]
[1724162361315,0.04442586,146.08,146.04,6.90256609]
[1724162361925,3.422,146.07,146.04,6.90256609]
[1724162362727,3.422,146.07,146.04,3.4225]
[1724162362926,0.04442586,146.08,146.03,3.4227]
[1724162363222,39.39442586,146.08,146.03,3.4227]
[1724162363413,1.5007,146.07,146.03,3.4227]
[1724162363610,1.5007,146.07,146.01,39.35]
[1724162364024,4.9228,146.07,146.03,3.4227]
[1724162364223,1.5007,146.07,146.03,3.4227]
[1724162364824,3.4222,146.06,146.03,3.4227]
[1724162365225,39.35,146.06,145.96,29.4213]
[1724162365418,0.05121584,146.02,145.97,39.35]
[1724162366228,0.05121584,146.02,146.01,3.4234]
[1724162368023,0.05121584,146.02,146.0,3.4236]
[1724162368524,3.47441584,146.02,145.99,3.4237]
[1724162368922,0.05121584,146.02,145.96,27.34]
[1724162369121,0.05121584,146.02,146.01,3.4233]
[1724162370323,0.05121584,146.02,146.0,3.4235]
[1724162372934,0.05121584,146.02,145.99,3.4237]
[1724162373132,0.05121584,146.02,145.96,27.34]
[1724162373526,0.05121584,146.02,145.99,3.4236]
[1724162373834,0.05121584,146.02,145.96,27.34]
[1724162374029,0.05121584,146.02,145.97,39.35]
[1724162374434,0.05121584,146.02,146.01,3.4233]
[1724162375232,0.05121584,146.02,146.0,3.4234]
[1724162375723,3.47451584,146.02,145.98,3.4239]
[1724162375926,0.05121584,146.02,145.96,66.69]
[1724162377132,0.05121584,146.02,145.98,39.35]
[1724162378536,0.05121584,146.02,146.01,3.4233]
[1724162380234,3.4215,146.09,146.0,39.35]
[1724162380440,39.35,146.1,146.0,39.35]
[1724162380831,3.4217,146.08,146.04,3.4224]
[1724162381138,39.35,146.1,146.05,3.36667031]
[1724162381335,39.35,146.1,146.0,39.35]
[1724162381539,0.04683657,146.07,146.05,0.05121584]
[1724162382141,3.46883657,146.07,146.05,0.05121584]
[1724162382528,19.22883657,146.07,146.05,0.05121584]
[1724162383034,0.04683657,146.07,146.05,0.05121584]
[1724162383931,0.04683657,146.07,146.05,3.47361584]
[1724162385738,15.80683657,146.07,146.05,3.47361584]
[1724162386643,0.04683657,146.07,146.05,3.47361584]
[1724162387840,19.22883657,146.07,146.05,0.05121584]
[1724162388139,0.04683657,146.07,146.05,0.05121584]
[1724162388336,0.04683657,146.07,146.05,3.47341584]
[1724162388735,0.04683657,146.07,146.05,0.05121584]
[1724162389541,19.1822,146.06,146.05,0.05121584]
[1724162390644,19.1822,146.06,145.99,15.76]
[1724162390645,3.4227,146.04,145.99,15.76]
[1724162390938,19.1827,146.04,145.98,15.76]
[1724162391144,19.1827,146.04,146.02,3.4231]
[1724162391644,19.22958097,146.04,146.02,3.4231]
[1724162391944,15.76,146.03,145.96,27.34]
[1724162392133,0.04915251,146.01,145.96,27.34]
[1724162392938,0.04915251,146.01,145.96,66.77]
[1724162393544,0.04915251,146.01,145.96,39.43]
[1724162393935,0.04915251,146.01,146.0,3.4236]
[1724162401247,0.04915251,146.01,145.95,42.88413307]
[1724162402553,0.04915251,146.01,146.0,3.4236]
[1724162403646,39.43,146.08,146.04,3.4225]
[1724162403844,42.8519,146.08,146.05,3.39473878]
[1724162404042,39.43,146.08,146.04,3.4225]
[1724162404244,39.43,146.08,146.03,3.4228]
[1724162404448,3.4221,146.07,146.03,3.3358776]
[1724162404645,3.4221,146.07,145.99,39.43]
[1724162404953,0.05188889,146.06,146.04,0.04704478]
[1724162405154,0.05188889,146.06,146.05,3.48813047]
[1724162406554,0.05188889,146.06,146.04,0.04704478]
[1724162406754,6.8376,146.21,146.04,0.04704478]
[1724162407056,39.43,146.13,146.04,3.5057511]
[1724162407255,1.4826,146.14,146.05,39.43]
[1724162407453,1.4826,146.14,146.05,42.77533894]
[1724162407860,1.4826,146.14,146.05,44.25323894]
[1724162408054,0.04979101,146.11,146.08,0.05179173]
[1724162408257,39.47979101,146.11,146.08,0.05179173]
[1724162408558,42.90099101,146.11,146.08,0.05179173]
[1724162409251,42.90099101,146.11,146.08,3.47349173]
[1724162409459,39.47979101,146.11,146.08,3.47349173]
[1724162410052,0.04979101,146.11,146.08,3.47349173]
[1724162410947,0.04979101,146.11,146.08,0.05179173]
[1724162411860,0.04979101,146.11,146.1,3.4212]
[1724162414961,0.04979101,146.11,146.08,3.47339173]
[1724162415151,0.04979101,146.11,146.08,0.05179173]
[1724162415660,3.4213,146.1,146.08,0.05179173]
[1724162415864,39.47979101,146.11,146.08,0.05179173]
[1724162416256,42.8515,146.09,146.08,0.05179173]
[1724162417358,39.47979101,146.11,146.08,0.05179173]
[1724162417663,0.04979101,146.11,146.09,3.4214]
[1724162417861,0.04979101,146.11,146.08,0.05179173]
[1724162418065,0.04979101,146.11,146.1,3.4212]
[1724162426063,0.04979101,146.11,146.08,39.48179173]
[1724162426064,0.04979101,146.11,146.09,3.4214]
[1724162427177,0.04979101,146.11,146.1,3.4212]
[1724162429768,0.04979101,146.11,146.09,3.4214]
[1724162430070,0.04979101,146.11,146.08,39.48179173]
[1724162430565,0.04979101,146.11,146.1,3.4212]
[1724162432168,0.04979101,146.11,146.09,3.4213]
[1724162432358,0.04979101,146.11,146.08,0.05179173]
[1724162433472,1.64169101,146.11,146.08,0.05179173]
[1724162434468,39.43,146.1,146.0,39.43]
[1724162435065,3.4221,146.07,146.03,3.4226]
[1724162435265,3.4221,146.07,146.04,3.3374642]
[1724162435464,3.47043802,146.07,146.04,0.04924967]
[1724162435663,3.4222,146.06,146.04,3.5437187]
[1724162435968,39.43,146.05,145.97,40.77491127]
[1724162436277,3.4228,146.04,145.98,3.4239]
[1724162436680,3.4228,146.04,145.99,3.4237]
[1724162437269,0.04370718,146.03,145.99,3.4237]
[1724162437477,0.04370718,146.03,145.99,39.43]
[1724162438168,0.04370718,146.03,146.01,39.43]
[1724162439179,0.04370718,146.03,146.02,3.4231]
[1724162439674,3.0692,146.1,146.01,39.43]
[1724162439869,1.4983,146.1,146.05,39.43]
[1724162440075,1.4983,146.1,146.06,3.40579706]
[1724162440383,1.4983,146.1,146.07,3.4219]
[1724162440573,1.4983,146.1,146.07,6.80444766]
[1724162440769,1.54411754,146.1,146.07,6.80444766]
[1724162440972,1.54411754,146.1,146.07,3.38254766]
[1724162441175,1.54411754,146.1,146.07,0.04370718]
[1724162441372,0.04581754,146.1,146.07,0.04370718]
[1724162444878,0.04581754,146.1,146.09,3.4215]
[1724162445773,0.04581754,146.1,146.07,0.04370718]
[1724162446774,0.04581754,146.1,146.07,3.46560718]
[1724162447679,0.04581754,146.1,146.07,0.04370718]
[1724162449784,0.04581754,146.1,146.04,3.4225]
[1724162450088,3.4218,146.08,146.04,3.4225]
[1724162450384,39.43,146.09,145.99,39.43]
[1724162450590,3.4221,146.07,145.99,39.43]
[1724162450788,2.9459,146.06,146.02,3.4229]
[1724162450986,0.0481705,146.04,146.02,3.4229]
[1724162451197,0.0481705,146.04,145.97,40.77732867]
[1724162451484,0.0481705,146.04,145.96,66.77]
[1724162451687,0.0481705,146.04,145.97,39.43]
[1724162451881,0.0481705,146.04,145.99,3.4236]
[1724162452481,0.0481705,146.04,145.99,3.4238]
[1724162453486,3.4707705,146.04,145.99,3.4238]
[1724162453679,0.0481705,146.04,145.99,3.4238]
[1724162453880,39.43,146.03,145.93,80.22056108]
[1724162454090,39.43,146.03,145.93,39.43]
[1724162454389,0.0459669,145.99,145.93,42.90023454]
[1724162454580,0.0459669,145.99,145.93,39.43]
[1724162454784,0.0459669,145.99,145.94,3.4249]
[1724162455399,0.0459669,145.99,145.95,3.4247]
[1724162456289,3.4697669,145.99,145.94,3.4249]
[1724162456491,0.0459669,145.99,145.92,3.43807106]
[1724162456685,1.5297,145.98,145.92,3.43807106]
[1724162456888,4.9538,145.98,145.93,3.425]
[1724162457087,1.5297,145.98,145.93,3.425]
[1724162458193,4.9538,145.98,145.92,6.86347106]
[1724162458397,1.5297,145.98,145.92,3.4254]
[1724162458795,4.9538,145.98,145.91,42.87369798]
[1724162458997,1.5297,145.98,145.92,39.43]
[1724162459401,1.5297,145.98,145.94,3.4249]
[1724162459604,1.5297,145.98,145.9,27.36]
[1724162459799,0.05087695,145.96,145.91,39.43]
[1724162460103,0.05087695,145.96,145.92,3.4254]
[1724162460300,39.48087695,145.96,145.9,27.36]
[1724162460508,39.43,145.94,145.84,39.43]
[1724162460897,0.04760091,145.9,145.83,3.37125369]
[1724162461095,0.04760091,145.9,145.82,39.43]
[1724162461305,0.04760091,145.9,145.84,39.43]
[1724162461506,3.4263,145.89,145.84,39.43]
[1724162461700,0.04738469,145.88,145.83,3.43903479]
[1724162462008,3.4255,145.92,145.87,3.4264]
[1724162462705,0.05028174,145.91,145.86,3.4558089]
[1724162462913,0.05028174,145.91,145.85,39.43]
[1724162463204,0.05028174,145.91,145.87,39.43]
[1724162463406,0.05028174,145.91,145.89,39.43]
[1724162463605,10.2657,146.08,145.89,39.43]
[1724162463807,39.43,146.01,145.91,39.43]
[1724162463999,3.4244,145.97,145.92,3.4254]
[1724162464199,39.43,145.99,145.89,39.43]
[1724162464407,3.4247,145.96,145.91,3.4257]
[1724162464597,39.43,145.97,145.87,39.43]
[1724162465016,3.4252,145.93,145.88,3.4262]
[1724162465307,39.43,145.94,145.86,4.6618]
[1724162465495,3.4252,145.93,145.92,0.05028174]
[1724162466311,39.43,145.93,145.86,1.5669]
[1724162466522,52.3337,145.93,145.86,1.5669]
[1724162466815,3.426,145.9,145.82,52.80801726]
[1724162467210,49.3,145.91,145.82,3.50801726]
[1724162467406,49.3,145.91,145.8,49.3]
[1724162467602,49.3,145.91,145.8,52.75596546]
[1724162467911,3.4265,145.88,145.83,3.4274]
[1724162468413,49.3,145.91,145.83,3.4274]
[1724162468612,49.3,145.91,145.8,52.75596546]
[1724162468808,49.3,145.91,145.85,0.05001935]
[1724162469005,3.4266,145.87,145.85,0.05001935]
[1724162469909,0.04764203,145.87,145.85,0.05001935]
[1724162470314,0.04764203,145.87,145.85,3.47711935]
[1724162471013,0.04764203,145.87,145.85,0.05001935]
[1724162471508,3.4268,145.86,145.85,0.05001935]
[1724162472116,0.04764203,145.87,145.85,0.05001935]
[1724162474701,3.47434203,145.87,145.85,0.05001935]
[1724162474909,0.04764203,145.87,145.68,6.862]
[1724162475112,49.3,145.88,145.77,49.3]
[1724162475312,3.4272,145.85,145.8,3.4282]
[1724162475614,3.4272,145.85,145.77,49.3]
[1724162476012,0.04926616,145.82,145.75,3.1951]
[1724162476313,0.04926616,145.82,145.76,49.3]
[1724162476517,0.04926616,145.82,145.75,3.1951]
[1724162476518,0.04926616,145.82,145.79,3.4284]
[1724162476704,0.04926616,145.82,145.76,49.3]
[1724162477310,0.04926616,145.82,145.8,3.4282]
[1724162477605,0.04926616,145.82,145.75,3.1951]
[1724162478811,3.47706616,145.82,145.75,3.1951]
[1724162479715,0.04926616,145.82,145.75,3.1951]
[1724162480911,3.47726616,145.82,145.77,3.4289]
[1724162481117,0.04926616,145.82,145.75,3.1951]
[1724162481717,3.47726616,145.82,145.76,3.4291]
[1724162481913,0.04926616,145.82,145.75,3.1951]
[1724162482214,3.47726616,145.82,145.76,3.429]
[1724162482519,0.04926616,145.82,145.75,3.1951]
[1724162483406,0.04926616,145.82,145.79,3.4284]
[1724162483608,0.04926616,145.82,145.79,3.44154364]
[1724162483807,0.04926616,145.82,145.75,3.1951]
[1724162485720,49.34926616,145.82,145.75,1.5964]
[1724162486416,39.53926616,145.82,145.75,1.5964]
[1724162487317,42.96726616,145.82,145.76,3.429]
[1724162487919,3.4282,145.81,145.75,5.0258]
[1724162488125,39.53926616,145.82,145.75,5.0258]
[1724162488622,39.53926616,145.82,145.75,1.5964]
[1724162489115,39.49,145.8,145.74,1.5943]
[1724162489323,0.04491717,145.78,145.74,1.5943]
[1724162489515,0.0494632,145.77,145.75,3.4294]
[1724162490308,0.0494632,145.77,145.76,3.4292]
[1724162490514,0.0494632,145.77,145.74,1.5943]
[1724162490914,0.0494632,145.77,145.75,3.4293]
[1724162492724,0.0494632,145.77,145.72,1.5869]
[1724162493023,0.0494632,145.77,145.74,3.4295]
[1724162493227,0.0494632,145.77,145.72,3.1801]
[1724162493730,39.49,145.73,145.64,7.16096042]
[1724162494025,39.49,145.74,145.56,1.5831]
[1724162494026,39.49,145.66,145.56,1.5831]
[1724162494222,39.49,145.61,145.57,1.5849]
[1724162494415,39.49,145.59,145.55,3.46706255]
[1724162494733,42.9234,145.59,145.54,3.4342]
[1724162495927,39.49,145.57,145.53,3.4346]
[1724162496420,3.4339,145.56,145.5,4.6537]
[1724162496620,49.47,145.57,145.5,4.6537]
[1724162496823,49.47,145.55,145.5,3.0706]
[1724162497222,0.05200604,145.58,145.52,49.47]
[1724162497424,0.05200604,145.58,145.54,49.47]
[1724162497723,0.05200604,145.58,145.52,49.47]
[1724162498023,49.47,145.61,145.51,1.4575]
[1724162498329,1.4462,145.65,145.5,3.0706]
[1724162498330,49.47,145.59,145.5,3.0706]
[1724162498529,49.47,145.59,145.5,1.5849]
[1724162498530,0.0509092,145.56,145.5,1.5849]
[1724162498719,0.0509092,145.56,145.41,2.9404]
[1724162498918,0.0509092,145.56,145.46,49.47]
[1724162499332,49.47,145.57,145.48,3.4358]
[1724162499520,49.47,145.59,145.48,3.4358]
[1724162499833,0.04445044,145.52,145.47,3.436]
[1724162500223,49.47,145.55,145.47,3.436]
[1724162500424,49.47,145.55,145.44,49.47]
[1724162500820,0.04392791,145.51,145.44,49.47]
[1724162501530,0.04392791,145.51,145.48,3.4358]
[1724162501828,0.04392791,145.51,145.48,52.94504849]
[1724162502017,3.433,145.6,145.5,49.47]
[1724162502218,49.47,145.63,145.54,3.4344]
[1724162502730,49.47,145.63,145.53,49.47]
[1724162502927,4.5531,145.64,145.55,49.47]
[1724162503233,3.0705,145.64,145.55,49.47]
[1724162504124,0.05246465,145.59,145.57,0.0441903]
[1724162504522,3.0705,145.64,145.57,0.0441903]
[1724162505029,0.04426842,145.59,145.57,0.0441903]
[1724162505431,1.5121,145.64,145.57,49.5141903]
[1724162505732,0.05271757,145.59,145.57,49.5141903]
[1724162505921,3.0806,145.69,145.57,49.5141903]
[1724162506126,3.4314,145.67,145.6,49.47]
[1724162506330,3.0806,145.69,145.6,52.90507395]
[1724162506531,49.47,145.72,145.65,3.4316]
[1724162507035,3.431,145.69,145.67,0.04447058]
[1724162507936,0.04700416,145.7,145.67,0.04447058]
[1724162509027,3.4311,145.68,145.67,0.04447058]
[1724162509239,49.51700416,145.7,145.61,1.5338]
[1724162509824,0.04700416,145.7,145.64,49.47]
[1724162510222,4.6791,145.76,145.64,49.47]
[1724162510843,0.04372523,145.68,145.67,3.4311]
[1724162511536,3.4305,145.71,145.67,3.4311]
[1724162511733,4.6791,145.76,145.67,3.4311]
[1724162511932,0.0500035,145.69,145.66,0.04973578]
[1724162512234,3.0895,145.76,145.67,49.47]
[1724162512425,4.944,145.76,145.69,49.47]
[1724162512631,1.5146,145.76,145.69,49.47]
[1724162512829,1.5146,145.76,145.66,49.51650532]
[1724162513132,0.04810208,145.74,145.62,1.5417]
[1724162513435,3.4304,145.71,145.7,0.04944555]
[1724162513638,49.47,145.75,145.64,49.47]
[1724162513934,3.4306,145.7,145.69,0.04628093]
[1724162514329,0.04324565,145.72,145.62,51.0117]
[1724162514648,49.47,145.71,145.62,1.5417]
[1724162515139,3.4312,145.68,145.64,3.4319]
[1724162515330,0.04787027,145.67,145.64,3.4319]
[1724162515528,0.04787027,145.67,145.62,1.5417]
[1724162515743,0.04787027,145.67,145.57,49.47]
[1724162515930,0.04787027,145.67,145.58,1.5122]
[1724162516136,0.04787027,145.67,145.62,49.47]
[1724162516338,0.04787027,145.67,145.62,52.8543653]
[1724162516736,3.4309,145.69,145.65,3.4316]
[1724162517251,3.4308,145.7,145.64,49.47]
[1724162517431,49.47,145.77,145.66,49.47]
[1724162518235,3.4299,145.73,145.69,3.4307]
[1724162518534,0.04601353,145.72,145.66,49.47]
[1724162518729,0.04601353,145.72,145.68,49.47]
[1724162518937,0.04601353,145.72,145.71,3.4304]
[1724162519340,3.4288,145.78,145.7,52.96867562]
[1724162519645,49.47,145.84,145.72,49.47]
[1724162520046,3.4289,145.78,145.74,3.4296]
[1724162520234,49.47,145.81,145.71,1.5219]
[1724162520438,3.4294,145.76,145.75,0.04611831]
[1724162520634,0.0481223,145.77,145.74,0.05023352]
[1724162520635,0.04697297,145.77,145.74,0.05023352]
[1724162520835,49.51697297,145.77,145.74,0.05023352]
[1724162521350,3.4296,145.75,145.74,0.05023352]
[1724162521942,49.47,145.77,145.66,49.47]
[1724162522344,49.47,145.77,145.71,3.4302]
[1724162522545,49.47,145.77,145.66,49.47]
[1724162522845,0.05183497,145.73,145.66,49.47]
[1724162523543,0.05183497,145.73,145.71,3.4302]
[1724162523944,0.05183497,145.73,145.66,49.47]
[1724162524241,3.48183497,145.73,145.7,3.4305]
[1724162524440,0.05183497,145.73,145.66,49.47]
[1724162524649,3.4306,145.71,145.66,49.47]
[1724162524837,0.05183497,145.73,145.65,1.5219]
[1724162525142,0.05183497,145.73,145.66,3.4314]
[1724162525333,3.4308,145.7,145.65,1.5219]
[1724162525534,0.04785498,145.69,145.65,1.5219]
[1724162525934,50.9742,145.77,145.68,0.0497278]
[1724162526139,3.0088,145.78,145.68,49.47]
[1724162526338,3.4294,145.76,145.68,49.47]
[1724162526543,3.0088,145.78,145.68,49.47]
[1724162526744,3.0088,145.78,145.71,3.4302]
[1724162527043,3.0088,145.78,145.68,49.47]
[1724162527044,0.04732284,145.76,145.73,0.04523577]
[1724162527846,0.04732284,145.76,145.74,3.4297]
[1724162528036,0.04732284,145.76,145.73,0.04523577]
[1724162528953,0.04732284,145.76,145.73,3.47503577]
[1724162529158,3.47662284,145.76,145.73,0.04523577]
[1724162529344,0.04732284,145.76,145.73,0.04523577]
[1724162529741,3.4297,145.74,145.73,0.04523577]
[1724162530858,3.431,145.69,145.65,1.5227]
[1724162531148,49.47,145.74,145.65,1.5227]
[1724162531343,3.4305,145.71,145.67,3.4312]
[1724162531745,49.47,145.76,145.66,49.47]
[1724162531956,3.4303,145.72,145.68,3.4309]
[1724162532351,0.04718538,145.7,145.68,3.4309]
[1724162532852,0.04718538,145.7,145.69,3.4308]
[1724162533247,3.0926,145.78,145.68,49.47]
[1724162533749,3.4297,145.74,145.7,3.4305]
[1724162533948,52.5626,145.78,145.68,49.47]
[1724162534255,0.05036993,145.74,145.72,0.05048487]
[1724162534458,3.48006993,145.74,145.72,0.05048487]
[1724162534756,0.05036993,145.74,145.72,0.05048487]
[1724162534956,0.05036993,145.74,145.73,3.4299]
[1724162536046,0.05036993,145.74,145.72,49.52048487]
[1724162536047,3.4286,145.79,145.74,3.4295]
[1724162536254,3.4288,145.78,145.74,3.4295]
[1724162536858,3.4288,145.78,145.73,3.4299]
[1724162537054,0.04614283,145.77,145.74,0.05128661]
[1724162537260,3.47514283,145.77,145.74,0.05128661]
[1724162538048,0.04614283,145.77,145.74,0.05128661]
[1724162538658,3.4293,145.76,145.74,0.05128661]
[1724162541256,3.4294,145.75,145.74,0.05128661]
[1724162543357,3.4308,145.7,145.66,3.4313]
[1724162543559,3.4308,145.7,145.65,50.921]
[1724162543857,3.4305,145.71,145.67,3.4312]
[1724162544055,49.47,145.76,145.67,3.4312]
[1724162544365,3.4304,145.71,145.7,0.04571346]
[1724162544550,49.47,145.74,145.65,1.451]
[1724162544748,1.5985,145.73,145.63,76.91]
[1724162545051,0.04405958,145.72,145.69,0.04411359]
[1724162545449,3.4306,145.7,145.69,0.04411359]
[1724162545654,51.00165958,145.72,145.61,51.0315]
[1724162545857,50.9576,145.72,145.61,51.0315]
[1724162546160,49.47,145.69,145.61,1.5615]
[1724162547158,50.9576,145.72,145.61,51.0315]
[1724162547660,0.05060113,145.66,145.61,54.4641]
[1724162548264,3.4321,145.64,145.61,51.0315]
[1724162548764,0.05060113,145.66,145.61,51.0315]
[1724162549366,0.05060113,145.66,145.62,3.4325]
[1724162549861,3.4318,145.65,145.61,54.4641]
[1724162550063,3.4318,145.65,145.61,51.0315]
[1724162550259,0.05060113,145.66,145.61,51.0315]
[1724162550664,3.48230113,145.66,145.62,3.4323]
[1724162551363,3.4318,145.65,145.61,4.9942]
[1724162552171,0.05060113,145.66,145.61,51.0315]
[1724162553166,1.4876,145.72,145.66,3.4314]
[1724162553572,1.4842,145.8,145.65,49.47]
[1724162553768,2.963,145.79,145.65,49.47]
[1724162554177,2.963,145.79,145.65,51.0514]
[1724162554681,49.47,145.77,145.67,49.47]
[1724162554869,49.47,145.77,145.68,3.34903382]
[1724162555065,1.4762,145.79,145.73,3.4299]
[1724162555673,49.47,145.81,145.74,3.4296]
[1724162556278,49.47,145.84,145.72,50.9698]
[1724162556574,49.47,145.84,145.74,49.47]
[1724162556776,3.4285,145.79,145.75,3.4293]
[1724162557080,3.472694,145.79,145.75,3.4293]
[1724162557267,3.472694,145.79,145.78,3.4287]
[1724162557268,0.044194,145.79,145.78,3.4287]
[1724162559073,3.4277,145.83,145.79,3.4285]
[1724162559273,49.47,145.88,145.77,0.04750478]
[1724162559477,49.47,145.88,145.76,49.47]
[1724162559686,49.47,145.88,145.79,3.4284]
[1724162559985,49.47,145.88,145.74,1.4997]
[1724162559986,49.47,145.88,145.78,49.47]
[1724162560486,49.47,145.88,145.79,3.34604381]
[1724162560487,3.427,145.86,145.79,3.34604381]
[1724162560685,3.0384,145.89,145.82,0.05040491]
[1724162560686,0.04656409,145.84,145.82,0.05040491]
[1724162560985,3.4265,145.88,145.83,3.4275]
[1724162561177,50.9223,145.92,145.82,0.05040491]
[1724162561390,50.9223,145.92,145.83,49.47]
[1724162561682,3.4263,145.89,145.83,49.47]
[1724162562079,1.5969,145.93,145.85,3.4271]
[1724162562289,1.5969,145.93,145.83,49.47]
[1724162562787,0.05020491,145.89,145.87,0.04498196]
[1724162563185,50.9282,145.96,145.87,0.04498196]
[1724162563385,0.05044833,145.89,145.88,3.4265]
[1724162563587,50.9282,145.96,145.85,49.47]
[1724162563588,1.4582,145.96,145.85,49.47]
[1724162563893,0.05077139,145.9,145.89,3.4262]
[1724162564087,1.5969,145.97,145.88,49.47]
[1724162564490,3.4252,145.94,145.89,3.4261]
[1724162565190,0.04880691,145.93,145.9,0.04842205]
[1724162565695,3.4242,145.98,145.9,49.51842205]
[1724162565992,3.4242,145.98,145.92,49.47]
[1724162566391,49.47,146.02,145.9,49.47]
[1724162566594,49.47,145.98,145.89,1.4808]
[1724162566989,3.425,145.95,145.9,3.4258]
[1724162567184,0.04983604,145.95,145.92,0.04582825]
[1724162569296,3.4251,145.94,145.92,0.04582825]
[1724162569593,0.04983604,145.95,145.92,0.04582825]
[1724162569800,49.51983604,145.95,145.92,0.04582825]
[1724162570392,0.04983604,145.95,145.92,0.04582825]
[1724162571698,3.4253,145.93,145.92,0.04582825]
[1724162571894,49.47,145.93,145.81,51.0589]
[1724162572096,49.47,145.91,145.81,51.0589]
[1724162572398,1.5044,145.92,145.81,51.0589]
[1724162572697,3.4264,145.89,145.83,49.47]
[1724162573097,3.4264,145.89,145.85,0.04318507]
[1724162573098,0.05085058,145.87,145.85,0.04318507]
[1724162575286,0.05085058,145.87,145.85,3.47018507]
[1724162575697,0.05085058,145.87,145.85,0.04318507]
[1724162576198,3.47775058,145.87,145.85,0.04318507]
[1724162577095,0.05085058,145.87,145.85,0.04318507]
[1724162579092,0.05085058,145.87,145.85,3.47028507]
[1724162579697,0.05085058,145.87,145.86,3.427]
[1724162581300,0.05085058,145.87,145.85,49.51318507]
[1724162581301,0.05085058,145.87,145.85,0.04318507]
[1724162581489,0.05085058,145.87,145.85,49.51318507]
[1724162581694,0.05085058,145.87,145.86,3.427]
[1724162581900,1.5044,145.92,145.85,49.51318507]
[1724162582097,3.4256,145.92,145.88,3.4263]
[1724162582495,1.5238,145.94,145.86,49.47]
[1724162582699,4.9491,145.94,145.9,3.426]
[1724162582900,0.04937852,145.93,145.91,0.04941793]
[1724162583098,3.47487852,145.93,145.91,0.04941793]
[1724162583398,0.04937852,145.93,145.91,0.04941793]
[1724162583595,0.04937852,145.93,145.85,49.47]
[1724162583806,49.47,145.91,145.82,49.47]
[1724162584101,3.4269,145.87,145.8,49.47]
[1724162584300,3.4269,145.87,145.81,3.478671]
[1724162584604,1.5678,145.9,145.84,49.47]
[1724162584900,0.05136008,145.85,145.84,49.47]
[1724162585103,4.9939,145.9,145.84,49.47]
[1724162585499,0.04339297,145.86,145.84,49.47]
[1724162585911,0.04339297,145.86,145.85,3.4272]
[1724162586199,0.04339297,145.86,145.84,49.47]
[1724162586200,0.04339297,145.86,145.83,0.04528891]
[1724162587400,0.04339297,145.86,145.85,3.4272]
[1724162588604,0.04339297,145.86,145.83,0.04528891]
[1724162589107,0.04339297,145.86,145.84,3.4274]
[1724162589505,0.04339297,145.86,145.83,0.04528891]
[1724162589709,0.04339297,145.86,145.85,3.4272]
[1724162589905,49.47,145.93,145.84,49.47]
[1724162590098,3.4258,145.91,145.87,3.4265]
[1724162590298,3.4258,145.91,145.86,49.47]
[1724162590703,3.4258,145.91,145.88,3.4264]
[1724162591800,3.47534557,145.91,145.88,3.474183]
[1724162592212,0.04954557,145.91,145.89,3.4261]
[1724162592812,0.04954557,145.91,145.9,3.426]
[1724162593902,0.04954557,145.91,145.89,3.4262]
[1724162594101,0.04954557,145.91,145.88,0.047783]
[1724162594407,3.4262,145.89,145.88,0.047783]